fUST/lending_fUST_20250716
["ID","MTS","AMOUNT","RATE_DAILY","PERIOD"]
[372547116,1752679534614,-460.0,0.00019726,2]
[372547117,1752679534661,-991.99,0.00019726,2]
[372547118,1752679534711,-460.0,0.00019726,2]
[372547119,1752679534759,-460.0,0.00019726,2]
[372547120,1752679534807,-460.0,0.00019726,2]
[372547121,1752679534855,-460.0,0.00019726,2]
[372547122,1752679534907,-460.0,0.00019726,2]
[372547123,1752679534957,-460.0,0.00019726,2]
[372547124,1752679535006,-460.0,0.00019726,2]
[372547125,1752679535052,-460.0,0.00019726,2]
[372547126,1752679535101,-569.98,0.00019726,2]
[372547127,1752679535150,-2973.34,0.00019726,2]
[372547128,1752679535195,-493.83869931,0.00019726,2]
[372547129,1752679535245,-460.0,0.00019726,2]
[372547130,1752679535290,-500.0,0.00019726,2]
[372547131,1752679535336,-617.79,0.00019726,2]
[372547132,1752679535392,-196.00635365,0.00019726,2]
[372547133,1752679535446,-460.0,0.00019726,2]
[372547134,1752679535501,-460.0,0.00019726,2]
[372547135,1752679535556,-460.0,0.00019726,2]
[372547136,1752679535611,-460.0,0.00019726,2]
[372547137,1752679535668,-460.0,0.00019726,2]
[372547138,1752679535722,-816.5,0.00019726,2]
[372547139,1752679535782,-4388.0,0.00019726,2]
[372547140,1752679535834,-460.0,0.00019726,2]
[372547141,1752679535887,-460.0,0.00019726,2]
[372547142,1752679535941,-460.0,0.00019726,2]
[372547143,1752679536000,-460.0,0.00019726,2]
[372547144,1752679536058,-460.0,0.00019726,2]
[372547145,1752679536110,-460.0,0.00019726,2]
[372547146,1752679536162,-1980.72,0.00019726,2]
[372547147,1752679536221,-460.0,0.00019726,2]
[372547148,1752679536274,-460.0,0.00019726,2]
[372547149,1752679536326,-460.0,0.00019726,2]
[372547150,1752679536377,-675.07,0.00019726,2]
[372547151,1752679536428,-460.0,0.00019726,2]
[372547152,1752679536481,-423.04146588,0.00019726,2]
[372547153,1752679536535,-561.35,0.00019726,2]
[372547154,1752679536584,-597.23446227,0.00019726,2]
[372547155,1752679536641,-460.0,0.00019726,2]
[372547156,1752679536693,-460.0,0.00019726,2]
[372547157,1752679536750,-460.0,0.00019726,2]
[372547158,1752679536805,-460.0,0.00019726,2]
[372547159,1752679536864,-467.13403449,0.00019726,2]
[372547160,1752679536917,-545.13,0.00019726,2]
[372547161,1752679536972,-941.74,0.00019726,2]
[372547162,1752679537029,-460.0,0.00019726,2]
[372547163,1752679537081,-488.1,0.00019726,2]
[372547164,1752679537134,-460.0,0.00019726,2]
[372547165,1752679537187,-460.0,0.00019726,2]
[372547166,1752679537239,-466.62,0.00019726,2]
[372547167,1752679537294,-2912.34,0.00019726,2]
[372547168,1752679537347,-460.0,0.00019726,2]
[372547169,1752679537403,-1941.14,0.00019726,2]
[372547170,1752679537456,-460.0,0.00019726,2]
[372547171,1752679537514,-1633.45,0.00019726,2]
[372547172,1752679537566,-460.0,0.00019726,2]
[372547173,1752679537627,-779.28,0.00019726,2]
[372547174,1752679537681,-460.0,0.00019726,2]
[372547175,1752679537736,-460.0,0.00019726,2]
[372547176,1752679537790,-460.0,0.00019726,2]
[372547177,1752679537846,-460.0,0.00019726,2]
[372547178,1752679537902,-460.0,0.00019726,2]
[372547179,1752679537955,-460.0,0.00019726,2]
[372547180,1752679538014,-3381.34,0.00019726,2]
[372547181,1752679538066,-460.0,0.00019726,2]
[372547182,1752679538116,-460.0,0.00019726,2]
[372547183,1752679538170,-1219.52,0.00019726,2]
[372547184,1752679538221,-460.0,0.00019726,2]
[372547185,1752679538275,-654.6,0.00019726,2]
[372547186,1752679538515,-460.0,0.00019726,2]
[372547187,1752679538562,-460.0,0.00019726,2]
[372547188,1752679538609,-460.0,0.00019726,2]
[372547189,1752679538662,-460.0,0.00019726,2]
[372547190,1752679538717,-460.0,0.00019726,2]
[372547191,1752679538771,-249.25263874,0.00019726,2]
[372547192,1752679541174,11746.53926676,0.00018967,2]
[372547193,1752679541204,20000.0,0.00018967,2]
[372547194,1752679541236,20000.0,0.00018967,2]
[372547195,1752679541265,20000.0,0.00018967,2]
[372547196,1752679541305,20000.0,0.00018967,2]
[372547197,1752679541332,20000.0,0.00018967,2]
[372547198,1752679541359,20000.0,0.00018967,2]
[372547199,1752679541386,20000.0,0.00018967,2]
[372547200,1752679541413,20000.0,0.00018967,2]
[372547201,1752679541440,20000.0,0.00018967,2]
[372547202,1752679541469,20000.0,0.00018967,2]
[372547203,1752679541496,20000.0,0.00018967,2]
[372547204,1752679541525,20000.0,0.00018967,2]
[372547205,1752679542804,217.535523,0.00018158,2]
[372547212,1752679628134,-445.9,0.00018957,3]
[372547213,1752679628156,-300.0,0.00018964,2]
[372547214,1752679628176,-1718.9868595,0.00018965,2]
[372547218,1752679652958,-222.95,0.00018957,3]
[372547219,1752679652995,-668.85,0.00018957,3]
[372547220,1752679656539,1363.96838382,0.00018865,2]
[372547223,1752679679328,150.0,0.00016998,2]
[372547224,1752679679751,150.0,0.00017808,2]
[372547225,1752679680170,150.0,0.00018617,2]
[372547230,1752679699839,2233.4601793,0.000189,2]
[372547235,1752679745753,150.0,0.00016702,2]
[372547237,1752679752835,1000.0,0.00018574,2]
[372547241,1752679784074,-461.43,0.00018957,3]
[372547242,1752679784099,-230.71,0.00018957,3]
[372547243,1752679784122,-692.16,0.00018957,3]
[372547244,1752679784145,-300.0,0.00018964,2]
[372547245,1752679784170,-500.0,0.00018965,2]
[372547246,1752679784197,-500.0,0.00018965,2]
[372547247,1752679784224,-500.0,0.00018965,2]
[372547248,1752679784255,-500.0,0.00018965,2]
[372547249,1752679784277,-179.55761342,0.00018965,2]
[372547250,1752679784309,-500.0,0.00018965,2]
[372547251,1752679784333,-500.0,0.00018965,2]
[372547252,1752679784367,-376.99671948,0.00018965,2]
[372547253,1752679784394,-500.0,0.00018965,2]
[372547254,1752679784421,-500.0,0.00018965,2]
[372547255,1752679784446,-500.0,0.00018965,2]
[372547256,1752679784475,-259.1456671,0.00018965,2]
[372547589,1752679838825,-223.65,0.00018957,3]
[372547590,1752679838835,-60.87178401,0.00018964,2]
[372547591,1752679838847,-439.12821599,0.00018964,2]
[372547592,1752679838857,-500.0,0.00018964,2]
[372547593,1752679838866,-500.0,0.00018964,2]
[372547594,1752679838876,-500.0,0.00018964,2]
[372547595,1752679839051,-424.72183115,0.00018964,2]
[372547596,1752679839062,-500.0,0.00018964,2]
[372547597,1752679839072,-500.0,0.00018964,2]
[372547598,1752679839082,-500.0,0.00018964,2]
[372547599,1752679839092,-500.0,0.00018964,2]
[372547600,1752679839101,-463.74995276,0.00018964,2]
[372547601,1752679839128,-36.25004724,0.00018964,2]
[372547602,1752679839138,-500.0,0.00018964,2]
[372547604,1752679839147,-500.0,0.00018964,2]
[372547606,1752679839157,-500.0,0.00018964,2]
[372547608,1752679839166,-500.0,0.00018964,2]
[372547609,1752679839176,-500.0,0.00018964,2]
[372547611,1752679839185,-500.0,0.00018964,2]
[372547613,1752679839198,-500.0,0.00018964,2]
[372547615,1752679839208,-500.0,0.00018964,2]
[372547616,1752679839217,-500.0,0.00018964,2]
[372547617,1752679839227,-500.0,0.00018964,2]
[372547618,1752679839237,-500.0,0.00018964,2]
[372547619,1752679839247,-500.0,0.00018964,2]
[372547620,1752679839257,-500.0,0.00018964,2]
[372547621,1752679839266,-500.0,0.00018964,2]
[372547622,1752679839276,-500.0,0.00018964,2]
[372547623,1752679839286,-500.0,0.00018964,2]
[372547624,1752679839295,-500.0,0.00018964,2]
[372547625,1752679839305,-500.0,0.00018964,2]
[372547626,1752679839315,-500.0,0.00018964,2]
[372547627,1752679839324,-500.0,0.00018964,2]
[372547628,1752679839334,-500.0,0.00018964,2]
[372547630,1752679839344,-500.0,0.00018964,2]
[372547631,1752679839353,-500.0,0.00018964,2]
[372547632,1752679839363,-500.0,0.00018964,2]
[372547633,1752679839372,-500.0,0.00018964,2]
[372547634,1752679839382,-500.0,0.00018964,2]
[372547635,1752679839391,-500.0,0.00018964,2]
[372547637,1752679839401,-500.0,0.00018964,2]
[372547638,1752679839411,-500.0,0.00018964,2]
[372547639,1752679839421,-500.0,0.00018964,2]
[372547640,1752679839430,-500.0,0.00018964,2]
[372547641,1752679839441,-493.60675298,0.00018964,2]
[372547642,1752679839450,-500.0,0.00018964,2]
[372547643,1752679839460,-500.0,0.00018964,2]
[372547644,1752679839469,-500.0,0.00018964,2]
[372547645,1752679839479,-500.0,0.00018964,2]
[372547646,1752679839489,-500.0,0.00018964,2]
[372547647,1752679839499,-500.0,0.00018964,2]
[372547648,1752679839508,-500.0,0.00018964,2]
[372547649,1752679839518,-500.0,0.00018964,2]
[372547650,1752679839528,-500.0,0.00018964,2]
[372547651,1752679839538,-500.0,0.00018964,2]
[372547652,1752679839548,-500.0,0.00018964,2]
[372547653,1752679839558,-500.0,0.00018964,2]
[372547654,1752679839568,-500.0,0.00018964,2]
[372547655,1752679839578,-500.0,0.00018964,2]
[372547656,1752679839587,-500.0,0.00018964,2]
[372547657,1752679839598,-500.0,0.00018964,2]
[372547658,1752679839608,-500.0,0.00018964,2]
[372547659,1752679839617,-500.0,0.00018964,2]
[372547660,1752679839627,-500.0,0.00018964,2]
[372547661,1752679839636,-500.0,0.00018964,2]
[372547662,1752679839646,-500.0,0.00018964,2]
[372547663,1752679839656,-489.57132843,0.00018964,2]
[372547664,1752679839665,-500.0,0.00018964,2]
[372547665,1752679839679,-300.0,0.00018964,2]
[372547666,1752679839690,-300.0,0.00018964,2]
[372547667,1752679839700,-300.0,0.00018964,2]
[372547668,1752679839715,-1200.0,0.00018964,2]
[372547669,1752679839725,-17363.31805721,0.00018965,2]
[372547670,1752679839734,-500.0,0.00018965,2]
[372547671,1752679839744,-322.34827444,0.00018966,2]
[372547672,1752679839754,-1200.0,0.00018966,2]
[372547673,1752679839765,-118253.46073324,0.00018967,2]
[372547674,1752679839776,-895.35153118,0.00019078,2]
[372547675,1752679839786,-500.0,0.00019173,2]
[372547676,1752679839795,-500.0,0.00019173,2]
[372547677,1752679839805,-500.0,0.00019173,2]
[372547678,1752679839814,-500.0,0.00019173,2]
[372547679,1752679839824,-460.0,0.00019178,2]
[372547680,1752679839833,-460.0,0.00019178,2]
[372547681,1752679839843,-460.0,0.00019178,2]
[372547682,1752679839852,-460.0,0.00019178,2]
[372547683,1752679839863,-460.0,0.00019178,2]
[372547684,1752679839873,-460.0,0.00019178,2]
[372547685,1752679839882,-460.0,0.00019178,2]
[372547686,1752679839892,-460.0,0.00019178,2]
[372547687,1752679839902,-460.0,0.00019178,2]
[372547688,1752679839913,-460.0,0.00019178,2]
[372547689,1752679839922,-460.0,0.00019178,2]
[372547690,1752679839932,-460.0,0.00019178,2]
[372547691,1752679839944,-460.0,0.00019178,2]
[372547692,1752679839953,-460.0,0.00019178,2]
[372547693,1752679839963,-460.0,0.00019178,2]
[372547694,1752679839973,-460.0,0.00019178,2]
[372547695,1752679839983,-460.0,0.00019178,2]
[372547696,1752679839992,-460.0,0.00019178,2]
[372547697,1752679840001,-460.0,0.00019178,2]
[372547698,1752679840011,-473.31418441,0.00019178,2]
[372547699,1752679840021,-460.0,0.00019178,2]
[372547700,1752679840031,-460.0,0.00019178,2]
[372547701,1752679840041,-460.0,0.00019178,2]
[372547702,1752679840051,-460.0,0.00019178,2]
[372547703,1752679840060,-500.0,0.00019178,2]
[372547704,1752679840069,-1429.97,0.00019178,2]
[372547705,1752679840079,-460.0,0.00019178,2]
[372547706,1752679840088,-460.0,0.00019178,2]
[372547707,1752679840101,-460.0,0.00019178,2]
[372547708,1752679840111,-460.0,0.00019178,2]
[372547709,1752679840121,-460.0,0.00019178,2]
[372547710,1752679840130,-460.0,0.00019178,2]
[372547711,1752679840140,-460.70338835,0.00019178,2]
[372547712,1752679840149,-844.39,0.00019178,2]
[372547713,1752679840160,-987.04,0.00019178,2]
[372547714,1752679840172,-460.0,0.00019178,2]
[372547715,1752679840182,-458.33004213,0.00019178,2]
[372547716,1752679840193,-460.33238742,0.00019178,2]
[372547717,1752679840203,-460.0,0.00019178,2]
[372547718,1752679840213,-460.0,0.00019178,2]
[372547719,1752679840223,-460.0,0.00019178,2]
[372547720,1752679840232,-378.1049792,0.00019178,2]
[372547721,1752679840242,-594.46,0.00019178,2]
[372547722,1752679840252,-460.0,0.00019178,2]
[372547723,1752679840262,-460.0,0.00019178,2]
[372547724,1752679840272,-460.0,0.00019178,2]
[372547725,1752679840282,-460.0,0.00019178,2]
[372547726,1752679840292,-460.0,0.00019178,2]
[372547727,1752679840301,-460.0,0.00019178,2]
[372547728,1752679840311,-460.0,0.00019178,2]
[372547729,1752679840321,-446.49327071,0.00019178,2]
[372547730,1752679840330,-460.0,0.00019178,2]
[372547731,1752679840340,-460.0,0.00019178,2]
[372547732,1752679840349,-778.65,0.00019178,2]
[372547733,1752679840359,-5117.18,0.00019178,2]
[372547734,1752679840369,-460.0,0.00019178,2]
[372547735,1752679840379,-460.0,0.00019178,2]
[372547736,1752679840388,-460.0,0.00019178,2]
[372547737,1752679840397,-460.0,0.00019178,2]
[372547738,1752679840406,-471.95,0.00019178,2]
[372547739,1752679840416,-10006.83,0.00019178,2]
[372547740,1752679840425,-529.68625105,0.00019178,2]
[372547741,1752679840435,-460.0,0.00019178,2]
[372547743,1752679840447,-506.45,0.00019178,2]
[372547744,1752679840456,-464.88759222,0.00019178,2]
[372547746,1752679840466,-2438.56,0.00019178,2]
[372547748,1752679840476,-687.27,0.00019178,2]
[372547750,1752679840485,-462.70430278,0.00019178,2]
[372547751,1752679840495,-460.0,0.00019178,2]
[372547753,1752679840504,-460.0,0.00019178,2]
[372547755,1752679840514,-460.0,0.00019178,2]
[372547757,1752679840523,-460.0,0.00019178,2]
[372547759,1752679840533,-460.0,0.00019178,2]
[372547760,1752679840542,-521.65,0.00019178,2]
[372547761,1752679840552,-460.0,0.00019178,2]
[372547762,1752679840562,-460.0,0.00019178,2]
[372547763,1752679840571,-4147.13,0.00019178,2]
[372547764,1752679840581,-460.0,0.00019178,2]
[372547765,1752679840591,-460.0,0.00019178,2]
[372547766,1752679840600,-6962.62,0.00019178,2]
[372547767,1752679840610,-460.0,0.00019178,2]
[372547768,1752679840621,-460.0,0.00019178,2]
[372547769,1752679840630,-959.76,0.00019178,2]
[372547770,1752679840640,-460.0,0.00019178,2]
[372547771,1752679840650,-460.0,0.00019178,2]
[372547772,1752679840659,-460.0,0.00019178,2]
[372547773,1752679840670,-2589.89,0.00019178,2]
[372547774,1752679840679,-3564.08,0.00019178,2]
[372547775,1752679840691,-460.0,0.00019178,2]
[372547776,1752679840702,-460.0,0.00019178,2]
[372547777,1752679840712,-460.0,0.00019178,2]
[372547778,1752679840722,-463.03702052,0.00019178,2]
[372547779,1752679840732,-232.31077923,0.00019178,2]
[372547780,1752679840743,-1879.23,0.00019178,2]
[372547781,1752679840753,-1196.19,0.00019178,2]
[372547782,1752679840762,-460.0,0.00019178,2]
[372547783,1752679840772,-460.0,0.00019178,2]
[372547784,1752679840782,-2089.21,0.00019178,2]
[372547785,1752679840791,-460.0,0.00019178,2]
[372547786,1752679840801,-460.0,0.00019178,2]
[372547787,1752679840811,-13889.83,0.00019178,2]
[372547788,1752679840820,-460.0,0.00019178,2]
[372547789,1752679840829,-460.0,0.00019178,2]
[372547790,1752679840839,-460.0,0.00019178,2]
[372547791,1752679840849,-460.0,0.00019178,2]
[372547792,1752679840859,-460.0,0.00019178,2]
[372547793,1752679840870,-864.03,0.00019178,2]
[372547794,1752679840882,-506.92070911,0.00019178,2]
[372547795,1752679840893,-460.41250572,0.00019178,2]
[372547796,1752679840903,-464.03,0.00019178,2]
[372547797,1752679840912,-460.0,0.00019178,2]
[372547798,1752679840923,-460.0,0.00019178,2]
[372547799,1752679840932,-460.0,0.00019178,2]
[372547800,1752679840944,-460.0,0.00019178,2]
[372547801,1752679840953,-942.0,0.00019178,2]
[372547803,1752679840963,-460.0,0.00019178,2]
[372547805,1752679840972,-460.0,0.00019178,2]
[372547807,1752679840983,-1156.65,0.00019178,2]
[372547808,1752679840992,-396.97995237,0.00019178,2]
[372547809,1752679841001,-564.35,0.00019178,2]
[372547810,1752679841011,-460.0,0.00019178,2]
[372547811,1752679841020,-460.0,0.00019178,2]
[372547812,1752679841030,-460.0,0.00019178,2]
[372547813,1752679841040,-460.0,0.00019178,2]
[372547814,1752679841050,-460.0,0.00019178,2]
[372547815,1752679841060,-460.0,0.00019178,2]
[372547816,1752679841070,-460.0,0.00019178,2]
[372547817,1752679841079,-460.0,0.00019178,2]
[372547818,1752679841089,-460.0,0.00019178,2]
[372547819,1752679841099,-460.0,0.00019178,2]
[372547820,1752679841108,-5710.44,0.00019178,2]
[372547821,1752679841118,-9435.4,0.00019178,2]
[372547822,1752679841127,-460.0,0.00019178,2]
[372547823,1752679841137,-460.0,0.00019178,2]
[372547824,1752679841146,-1063.71,0.00019178,2]
[372547825,1752679841155,-460.0,0.00019178,2]
[372547826,1752679841165,-460.0,0.00019178,2]
[372547827,1752679841175,-460.0,0.00019178,2]
[372547828,1752679841184,-4062.86,0.00019178,2]
[372547829,1752679841196,-460.0,0.00019178,2]
[372547830,1752679841206,-476.27503444,0.00019178,2]
[372547831,1752679841215,-460.0,0.00019178,2]
[372547832,1752679841226,-460.0,0.00019178,2]
[372547833,1752679841236,-460.0,0.00019178,2]
[372547834,1752679841245,-460.0,0.00019178,2]
[372547835,1752679841254,-1081.66,0.00019178,2]
[372547836,1752679841264,-460.0,0.00019178,2]
[372547837,1752679841273,-1067.68,0.00019178,2]
[372547838,1752679841284,-460.0,0.00019178,2]
[372547839,1752679841293,-801.73,0.00019178,2]
[372547840,1752679841303,-460.0,0.00019178,2]
[372547841,1752679841313,-460.0,0.00019178,2]
[372547842,1752679841322,-462.89444049,0.00019178,2]
[372547843,1752679841332,-460.0,0.00019178,2]
[372547844,1752679841342,-801.73,0.00019178,2]
[372547845,1752679841352,-460.0,0.00019178,2]
[372547846,1752679841362,-662.38,0.00019178,2]
[372547847,1752679841372,-652.86,0.00019178,2]
[372547848,1752679841383,-460.91715273,0.00019178,2]
[372547849,1752679841394,-460.0,0.00019178,2]
[372547850,1752679841404,-460.0,0.00019178,2]
[372547851,1752679841414,-460.0,0.00019178,2]
[372547852,1752679841423,-460.0,0.00019178,2]
[372547853,1752679841433,-460.0,0.00019178,2]
[372547854,1752679841443,-460.0,0.00019178,2]
[372547855,1752679841452,-480.53422704,0.00019178,2]
[372547856,1752679841462,-460.0,0.00019178,2]
[372547857,1752679841472,-460.0,0.00019178,2]
[372547859,1752679841481,-460.0,0.00019178,2]
[372547860,1752679841491,-1058.85,0.00019178,2]
[372547861,1752679841501,-917.58,0.00019178,2]
[372547862,1752679841511,-460.0,0.00019178,2]
[372547863,1752679841521,-4731.5,0.00019178,2]
[372547864,1752679841531,-5295.6,0.00019178,2]
[372547865,1752679841542,-1895.02,0.00019178,2]
[372547866,1752679841553,-460.0,0.00019178,2]
[372547867,1752679841563,-3263.9,0.00019178,2]
[372547868,1752679841572,-460.0,0.00019178,2]
[372547869,1752679841581,-2186.29,0.00019178,2]
[372547870,1752679841590,-460.0,0.00019178,2]
[372547871,1752679841599,-460.0,0.00019178,2]
[372547872,1752679841608,-460.0,0.00019178,2]
[372547873,1752679841617,-460.0,0.00019178,2]
[372547874,1752679841625,-460.0,0.00019178,2]
[372547875,1752679841634,-460.0,0.00019178,2]
[372547876,1752679841644,-460.0,0.00019178,2]
[372547877,1752679841653,-5028.57,0.00019178,2]
[372547878,1752679841663,-460.0,0.00019178,2]
[372547879,1752679841675,-460.0,0.00019178,2]
[372547880,1752679841686,-460.0,0.00019178,2]
[372547881,1752679841705,-582.88,0.00019178,2]
[372547882,1752679841715,-460.0,0.00019178,2]
[372547883,1752679841725,-460.0,0.00019178,2]
[372547884,1752679841735,-460.0,0.00019178,2]
[372547885,1752679841744,-460.0,0.00019178,2]
[372547886,1752679841757,-460.0,0.00019178,2]
[372547887,1752679841767,-460.0,0.00019178,2]
[372547888,1752679841777,-1244.58,0.00019178,2]
[372547889,1752679841787,-1244.58,0.00019178,2]
[372547890,1752679841796,-1244.58,0.00019178,2]
[372547891,1752679841806,-1244.58,0.00019178,2]
[372547893,1752679841816,-463.68867527,0.00019178,2]
[372547894,1752679841825,-1244.58,0.00019178,2]
[372547895,1752679841835,-1244.58,0.00019178,2]
[372547896,1752679841845,-1244.58,0.00019178,2]
[372547897,1752679841854,-1244.58,0.00019178,2]
[372547898,1752679841864,-460.0,0.00019178,2]
[372547899,1752679841874,-1244.58,0.00019178,2]
[372547900,1752679841883,-1244.58,0.00019178,2]
[372547901,1752679841893,-1244.58,0.00019178,2]
[372547902,1752679841904,-460.0,0.00019178,2]
[372547903,1752679841913,-460.0,0.00019178,2]
[372547904,1752679841924,-469.31,0.00019178,2]
[372547905,1752679841937,-460.0,0.00019178,2]
[372547906,1752679841951,-1167.8,0.00019178,2]
[372547907,1752679841960,-460.0,0.00019178,2]
[372547908,1752679841970,-1244.58,0.00019178,2]
[372547909,1752679841980,-1244.58,0.00019178,2]
[372547910,1752679841991,-1244.58,0.00019178,2]
[372547911,1752679842000,-1244.58,0.00019178,2]
[372547912,1752679842010,-1244.58,0.00019178,2]
[372547913,1752679842020,-1244.58,0.00019178,2]
[372547914,1752679842029,-1244.58,0.00019178,2]
[372547915,1752679842039,-1244.58,0.00019178,2]
[372547916,1752679842049,-1244.58,0.00019178,2]
[372547917,1752679842059,-1244.58,0.00019178,2]
[372547918,1752679842069,-460.0,0.00019178,2]
[372547919,1752679842078,-1244.58,0.00019178,2]
[372547920,1752679842088,-1244.58,0.00019178,2]
[372547921,1752679842097,-1244.71199499,0.00019178,2]
[372547922,1752679842106,-1440.99,0.00019178,2]
[372547923,1752679842116,-460.0,0.00019178,2]
[372547924,1752679842126,-460.0,0.00019178,2]
[372547925,1752679842135,-460.0,0.00019178,2]
[372547926,1752679842144,-467.63,0.00019178,2]
[372547927,1752679842154,-460.0,0.00019178,2]
[372547928,1752679842164,-461.47232212,0.00019178,2]
[372547929,1752679842175,-460.0,0.00019178,2]
[372547930,1752679842186,-460.0,0.00019178,2]
[372547931,1752679842198,-1586.13,0.00019178,2]
[372547932,1752679842208,-541.03,0.00019178,2]
[372547933,1752679842218,-460.0,0.00019178,2]
[372547934,1752679842228,-460.0,0.00019178,2]
[372547935,1752679842238,-460.0,0.00019178,2]
[372547936,1752679842248,-460.0,0.00019178,2]
[372547937,1752679842258,-460.0,0.00019178,2]
[372547938,1752679842268,-460.0,0.00019178,2]
[372547939,1752679842277,-460.0,0.00019178,2]
[372547940,1752679842288,-309.745467,0.00019178,2]
[372547941,1752679842297,-666.0,0.00019178,2]
[372547942,1752679842307,-3397.57010489,0.00019178,2]
[372547943,1752679842317,-5000.0,0.00019181,2]
[372547944,1752679842326,-329.97049095,0.00019205,5]
[372547945,1752679842337,-500.0,0.00019239,2]
[372547946,1752679842347,-8899.7130658,0.00019329,2]
[372547947,1752679842357,-821.52001914,0.00019352,2]
[372547948,1752679842366,-460.0,0.00019452,2]
[372547949,1752679842507,-460.0,0.00019452,2]
[372547950,1752679842518,-460.0,0.00019452,2]
[372547951,1752679842528,-463.08397474,0.00019452,2]
[372547952,1752679842538,-557.04628335,0.00019452,2]
[372547953,1752679842548,-460.0,0.00019452,2]
[372547954,1752679842558,-460.0,0.00019452,2]
[372547955,1752679842568,-460.0,0.00019452,2]
[372547956,1752679842578,-460.0,0.00019452,2]
[372547957,1752679842588,-460.0,0.00019452,2]
[372547958,1752679842598,-460.0,0.00019452,2]
[372547959,1752679842607,-284.22674258,0.00019452,2]
[372547960,1752679842618,-460.0,0.00019452,2]
[372547961,1752679842627,-460.0,0.00019452,2]
[372547962,1752679842637,-460.0,0.00019452,2]
[372547963,1752679842647,-1429.97,0.00019452,2]
[372547964,1752679842656,-460.0,0.00019452,2]
[372547965,1752679842666,-460.0,0.00019452,2]
[372547966,1752679842678,-460.0,0.00019452,2]
[372547967,1752679842687,-460.0,0.00019452,2]
[372547968,1752679842699,-460.0,0.00019452,2]
[372547969,1752679842709,-460.0,0.00019452,2]
[372547970,1752679842719,-844.39,0.00019452,2]
[372547971,1752679842728,-987.04,0.00019452,2]
[372547972,1752679842737,-460.0,0.00019452,2]
[372547973,1752679842749,-462.32704462,0.00019452,2]
[372547974,1752679842758,-460.0,0.00019452,2]
[372547975,1752679842768,-594.46,0.00019452,2]
[372547976,1752679842777,-185.02,0.00019452,2]
[372547977,1752679842787,-460.0,0.00019452,2]
[372547978,1752679842797,-460.0,0.00019452,2]
[372547979,1752679842806,-460.0,0.00019452,2]
[372547980,1752679842816,-460.0,0.00019452,2]
[372547981,1752679842826,-460.0,0.00019452,2]
[372547982,1752679842835,-460.0,0.00019452,2]
[372547983,1752679842845,-460.0,0.00019452,2]
[372547984,1752679842855,-778.65,0.00019452,2]
[372547985,1752679842865,-5117.18,0.00019452,2]
[372547986,1752679842874,-460.0,0.00019452,2]
[372547987,1752679842883,-460.0,0.00019452,2]
[372547988,1752679842893,-471.95,0.00019452,2]
[372547989,1752679842902,-10006.83,0.00019452,2]
[372547990,1752679842912,-437.75402209,0.00019452,2]
[372547991,1752679842922,-506.45,0.00019452,2]